fUSD/lending_fUSD_20260530
["ID","MTS","AMOUNT","RATE_DAILY","PERIOD"]
[423424859,1780105865000,152.0,8.237e-05,7]
[423424861,1780105866000,152.0,8.24e-05,7]
[423424860,1780105866000,152.0,8.24e-05,7]
[423424863,1780105867000,152.0,8.242e-05,7]
[423424862,1780105867000,152.0,8.24e-05,7]
[423424866,1780106156000,152.0,8.238e-05,7]
[423424867,1780106157000,152.0,8.244e-05,7]
[423424868,1780106158000,152.0,8.244e-05,7]
[423424873,1780106159000,-152.0,8.32e-05,2]
[423424871,1780106159000,-441.5015,8.222e-05,2]
[423424872,1780106159000,-393.96490034,8.28e-05,2]
[423424874,1780106159000,-152.0,8.32e-05,2]
[423424875,1780106159000,-152.0,8.391e-05,2]
[423424878,1780106159000,-1200.0,8.497e-05,2]
[423424876,1780106159000,-250.0,8.459e-05,2]
[423424880,1780106159000,-4131.3803,8.498e-05,2]
[423424879,1780106159000,-515.61079984,8.497e-05,2]
[423424881,1780106159000,-945.18,8.498e-05,2]
[423424877,1780106159000,-300.0,8.497e-05,2]
[423424882,1780106159000,-500.0,8.564e-05,2]
[423424891,1780106159000,-500.0,8.597e-05,2]
[423424892,1780106159000,-9292.66880928,8.598e-05,2]
[423424889,1780106159000,-500.0,8.597e-05,2]
[423424890,1780106159000,-281.17977687,8.597e-05,2]
[423424883,1780106159000,-500.0,8.564e-05,2]
[423424887,1780106159000,-398.78979634,8.597e-05,2]
[423424885,1780106159000,-171.48732639,8.597e-05,2]
[423424886,1780106159000,-500.0,8.597e-05,2]
[423424884,1780106159000,-222.23679094,8.597e-05,2]
[423424888,1780106159000,-500.0,8.597e-05,2]
[423424893,1780106177000,152.0,8.244e-05,7]
[423424894,1780106189000,1200.0,0.00028082,120]
[423424895,1780106219000,151.09846339,8.598e-05,7]
[423424896,1780106239000,152.0,8.244e-05,7]
[423424897,1780106279000,158.27717948,8.598e-05,7]
[423424898,1780106279000,150.0,8.77e-05,7]
[423424899,1780106280000,257.71789577,9.286e-05,7]
[423424905,1780106548000,1000.0,0.0002808,120]
[423424907,1780106563000,1000.0,0.0002808,120]
[423424908,1780106567000,152.0,8.648e-05,7]
[423424910,1780106584000,1000.0,0.0002808,120]
[423424912,1780106595000,1000.0,0.0002808,120]
[423424913,1780106615000,1000.0,0.0002808,120]
[423424915,1780106760000,701.0,0.0002808,120]
[423424916,1780106782000,152.0,8.644e-05,7]
[423424917,1780106782000,152.0,8.644e-05,7]
[423424918,1780106833000,200.0,0.00028082,120]
[423424919,1780106941000,1000.0,0.00028081,120]
[423424970,1780107032000,-152.28,0.00010831,2]
[423424952,1780107032000,-151.0,0.0001,2]
[423424945,1780107032000,-250.0,9.456e-05,2]
[423424943,1780107032000,-394.57513491,9.347e-05,2]
[423424944,1780107032000,-1680.0,9.347e-05,2]
[423424942,1780107032000,-500.0,9.347e-05,2]
[423424939,1780107032000,-209.12966642,8.625e-05,2]
[423424941,1780107032000,-193.41943853,9.347e-05,2]
[423424940,1780107032000,-160.0,8.625e-05,2]
[423424937,1780107032000,-250.0,8.597e-05,2]
[423424936,1780107032000,-27783.4988,8.498e-05,2]
[423424938,1780107032000,-150.0,8.597e-05,2]
[423424934,1780107032000,-500.0,8.497e-05,2]
[423424933,1780107032000,-500.0,8.497e-05,2]
[423424932,1780107032000,-629.15285744,8.497e-05,2]
[423424930,1780107032000,-155.56575366,8.497e-05,2]
[423424931,1780107032000,-500.0,8.497e-05,2]
[423424927,1780107032000,-1200.0,8.497e-05,2]
[423424947,1780107032000,-255.0,9.457e-05,2]
[423424949,1780107032000,-18009.96,9.604e-05,2]
[423424935,1780107032000,-196.82584381,8.497e-05,2]
[423424948,1780107032000,-256.37,9.507e-05,2]
[423424966,1780107032000,-152.28,0.00010583,2]
[423424946,1780107032000,-278.86781507,9.456e-05,2]
[423424969,1780107032000,-152.28,0.00010707,2]
[423424968,1780107032000,-3242.22,0.00010695,2]
[423424967,1780107032000,-500.0,0.00010622,2]
[423424965,1780107032000,-2456.59,0.00010562,2]
[423424963,1780107032000,-163.24,0.00010488,2]
[423424959,1780107032000,-2351.0,0.00010281,2]
[423424962,1780107032000,-3242.22,0.0001044,2]
[423424964,1780107032000,-615.57,0.000105,2]
[423424961,1780107032000,-433.0,0.00010402,2]
[423424956,1780107032000,-2000.0,0.00010074,2]
[423424958,1780107032000,-3242.22,0.00010186,2]
[423424957,1780107032000,-500.0,0.00010075,2]
[423424954,1780107032000,-340.0,0.0001,2]
[423424955,1780107032000,-340.18040467,0.0001,2]
[423424953,1780107032000,-340.0,0.0001,2]
[423424950,1780107032000,-33242.88301159,9.66e-05,2]
[423424960,1780107032000,-500.0,0.00010348,2]
[423424951,1780107032000,-496.80173091,9.677e-05,2]
[423425012,1780107033000,-15690.80252551,0.00012122,2]
[423425013,1780107033000,-1000.0,0.00012169,2]
[423425010,1780107033000,-418.0,0.00011838,2]
[423425009,1780107033000,-3638.0,0.00011838,2]
[423425008,1780107033000,-1226.0,0.00011838,2]
[423425004,1780107033000,-3550.0,0.00011838,2]
[423425007,1780107033000,-1272.0,0.00011838,2]
[423425005,1780107033000,-1356.0,0.00011838,2]
[423425003,1780107033000,-928.0,0.00011838,2]
[423425011,1780107033000,-1600.0,0.00011993,2]
[423425002,1780107033000,-170.0,0.00011838,2]
[423425006,1780107033000,-525.0,0.00011838,2]
[423425014,1780107033000,-500.0,0.00012301,2]
[423425025,1780107033000,-150.34164345,0.00013488,2]
[423425017,1780107033000,-4609.0,0.00012441,2]
[423425016,1780107033000,-177.58,0.00012421,2]
[423425018,1780107033000,-2000.0,0.00012593,2]
[423425019,1780107033000,-15690.80252551,0.00012678,2]
[423425022,1780107033000,-150.0,0.00013488,2]
[423425024,1780107033000,-150.0,0.00013488,2]
[423425023,1780107033000,-150.0,0.00013488,2]
[423425021,1780107033000,-177.58,0.00013368,2]
[423425020,1780107033000,-15690.80252551,0.00013233,2]
[423425026,1780107033000,-150.0,0.00013488,2]
[423425027,1780107033000,-150.0,0.00013488,2]
[423425029,1780107033000,-194.77824471,0.00013488,2]
[423425001,1780107033000,-160.513,0.00011838,2]
[423425015,1780107033000,-2382.32,0.00012329,2]
[423425000,1780107033000,-163.0,0.00011838,2]
[423424979,1780107033000,-15690.80252551,0.00011099,2]
[423424999,1780107033000,-205.75052061,0.00011761,2]
[423425037,1780107033000,-150.0,0.00013539,2]
[423424971,1780107033000,-500.0,0.00010896,2]
[423424972,1780107033000,-3242.22,0.0001095,2]
[423424973,1780107033000,-152.28,0.00010954,2]
[423424975,1780107033000,-150.0,0.00010959,2]
[423424974,1780107033000,-3761.07214065,0.00010957,2]
[423424976,1780107033000,-152.28,0.00011078,2]
[423424977,1780107033000,-15690.80252556,0.00011099,2]
[423424978,1780107033000,-15690.80252551,0.00011099,2]
[423424981,1780107033000,-150.0,0.0001114,2]
[423424982,1780107033000,-500.0,0.0001117,2]
[423424980,1780107033000,-4547.45,0.0001114,2]
[423424987,1780107033000,-6404.91,0.00011281,2]
[423424985,1780107033000,-200.0,0.0001121,2]
[423424986,1780107033000,-250.0,0.00011229,2]
[423424984,1780107033000,-3242.22,0.00011204,2]
[423424983,1780107033000,-152.28,0.00011202,2]
[423424988,1780107033000,-3292.0,0.0001131,2]
[423424989,1780107033000,-152.28,0.00011326,2]
[423424991,1780107033000,-2170.79006061,0.00011338,2]
[423424990,1780107033000,-2000.0,0.00011334,2]
[423424998,1780107033000,-152.28,0.00011697,2]
[423424996,1780107033000,-15690.80252551,0.00011567,2]
[423424995,1780107033000,-564.41,0.00011483,2]
[423424992,1780107033000,-562.77774397,0.00011444,2]
[423424993,1780107033000,-152.28,0.00011449,2]
[423424994,1780107033000,-177.58,0.00011474,2]
[423424997,1780107033000,-152.28,0.00011573,2]
[423425028,1780107033000,-150.0,0.00013488,2]
[423425077,1780107033000,-500.0,0.00013698,2]
[423425031,1780107033000,-1600.0,0.00013492,2]
[423425065,1780107033000,-500.0,0.00013698,2]
[423425066,1780107033000,-632.03,0.00013698,2]
[423425067,1780107033000,-632.03,0.00013698,2]
[423425068,1780107033000,-632.03,0.00013698,2]
[423425072,1780107033000,-500.0,0.00013698,2]
[423425074,1780107033000,-586.94,0.00013698,2]
[423425075,1780107033000,-586.94,0.00013698,2]
[423425071,1780107033000,-500.0,0.00013698,2]
[423425070,1780107033000,-506.83787752,0.00013698,2]
[423425073,1780107033000,-586.94,0.00013698,2]
[423425069,1780107033000,-632.03,0.00013698,2]
[423425076,1780107033000,-586.94,0.00013698,2]
[423425082,1780107033000,-500.0,0.00013698,2]
[423425079,1780107033000,-500.0,0.00013698,2]
[423425081,1780107033000,-500.0,0.00013698,2]
[423425080,1780107033000,-500.0,0.00013698,2]
[423425087,1780107033000,-500.0,0.00013698,2]
[423425084,1780107033000,-558.23983442,0.00013698,2]
[423425078,1780107033000,-500.0,0.00013698,2]
[423425083,1780107033000,-500.0,0.00013698,2]
[423425086,1780107033000,-500.0,0.00013698,2]
[423425085,1780107033000,-500.0,0.00013698,2]
[423425088,1780107033000,-500.0,0.00013698,2]
[423425089,1780107033000,-500.0,0.00013698,2]
[423425030,1780107033000,-150.0,0.00013488,2]
[423425091,1780107033000,-507.06781961,0.00013698,2]
[423425090,1780107033000,-500.0,0.00013698,2]
[423425064,1780107033000,-500.0,0.00013698,2]
[423425063,1780107033000,-150.0,0.00013694,2]
[423425092,1780107033000,-823.3,0.00013698,2]
[423425062,1780107033000,-150.0,0.0001369,2]
[423425061,1780107033000,-150.0,0.00013687,2]
[423425032,1780107033000,-194.77824471,0.00013503,2]
[423425035,1780107033000,-194.77824471,0.00013533,2]
[423425034,1780107033000,-150.0,0.00013528,2]
[423425036,1780107033000,-150.0,0.00013538,2]
[423425039,1780107033000,-194.77824471,0.00013563,2]
[423425038,1780107033000,-194.77824471,0.00013548,2]
[423425041,1780107033000,-150.0,0.00013569,2]
[423425043,1780107033000,-150.0,0.00013588,2]
[423425040,1780107033000,-150.0,0.00013567,2]
[423425045,1780107033000,-194.77824471,0.00013594,2]
[423425044,1780107033000,-150.0,0.00013591,2]
[423425049,1780107033000,-150.0,0.00013613,2]
[423425046,1780107033000,-5000.0,0.00013599,2]
[423425033,1780107033000,-194.77824471,0.00013518,2]
[423425054,1780107033000,-150.0,0.00013645,2]
[423425042,1780107033000,-194.77824471,0.00013578,2]
[423425059,1780107033000,-194.77824471,0.00013684,2]
[423425057,1780107033000,-194.77824471,0.00013669,2]
[423425055,1780107033000,-150.0,0.0001365,2]
[423425056,1780107033000,-194.77824471,0.00013654,2]
[423425058,1780107033000,-150.0,0.00013675,2]
[423425060,1780107033000,-6453.0,0.00013685,2]
[423425052,1780107033000,-194.77824471,0.00013639,2]
[423425051,1780107033000,-150.0,0.00013638,2]
[423425048,1780107033000,-150.0,0.00013609,2]
[423425050,1780107033000,-194.77824471,0.00013624,2]
[423425047,1780107033000,-194.77824471,0.00013609,2]
[423425053,1780107033000,-150.0,0.00013643,2]
[423425132,1780107034000,-500.0,0.00013698,2]
[423425126,1780107034000,-716.95,0.00013698,2]
[423425130,1780107034000,-500.0,0.00013698,2]
[423425131,1780107034000,-500.0,0.00013698,2]
[423425129,1780107034000,-500.0,0.00013698,2]
[423425125,1780107034000,-509.66155533,0.00013698,2]
[423425127,1780107034000,-716.95,0.00013698,2]
[423425124,1780107034000,-693.83,0.00013698,2]
[423425122,1780107034000,-500.0,0.00013698,2]
[423425134,1780107034000,-500.0,0.00013698,2]
[423425119,1780107034000,-500.0,0.00013698,2]
[423425128,1780107034000,-500.0,0.00013698,2]
[423425144,1780107034000,-500.0,0.00013698,2]
[423425139,1780107034000,-1497.12,0.00013698,2]
[423425135,1780107034000,-511.90120628,0.00013698,2]
[423425136,1780107034000,-500.0,0.00013698,2]
[423425137,1780107034000,-515.98565567,0.00013698,2]
[423425149,1780107034000,-500.0,0.00013698,2]
[423425138,1780107034000,-1497.12,0.00013698,2]
[423425140,1780107034000,-500.0,0.00013698,2]
[423425141,1780107034000,-197.65921909,0.00013698,2]
[423425142,1780107034000,-565.72873569,0.00013698,2]
[423425143,1780107034000,-154.62769041,0.00013698,2]
[423425146,1780107034000,-500.0,0.00013698,2]
[423425116,1780107034000,-765.01,0.00013698,2]
[423425133,1780107034000,-500.0,0.00013698,2]
[423425121,1780107034000,-500.0,0.00013698,2]
[423425106,1780107034000,-500.0,0.00013698,2]
[423425120,1780107034000,-500.0,0.00013698,2]
[423425148,1780107034000,-4911.21,0.00013698,2]
[423425093,1780107034000,-823.3,0.00013698,2]
[423425094,1780107034000,-823.3,0.00013698,2]
[423425096,1780107034000,-500.0,0.00013698,2]
[423425095,1780107034000,-823.3,0.00013698,2]
[423425097,1780107034000,-500.0,0.00013698,2]
[423425098,1780107034000,-501.28672144,0.00013698,2]
[423425099,1780107034000,-1267.3,0.00013698,2]
[423425101,1780107034000,-588.77736788,0.00013698,2]
[423425111,1780107034000,-500.0,0.00013698,2]
[423425100,1780107034000,-1267.3,0.00013698,2]
[423425102,1780107034000,-549.93789521,0.00013698,2]
[423425103,1780107034000,-500.0,0.00013698,2]
[423425105,1780107034000,-500.0,0.00013698,2]
[423425104,1780107034000,-500.0,0.00013698,2]
[423425110,1780107034000,-736.64,0.00013698,2]
[423425108,1780107034000,-736.64,0.00013698,2]
[423425107,1780107034000,-736.64,0.00013698,2]
[423425109,1780107034000,-736.64,0.00013698,2]
[423425112,1780107034000,-500.0,0.00013698,2]
[423425113,1780107034000,-500.0,0.00013698,2]
[423425114,1780107034000,-500.0,0.00013698,2]
[423425123,1780107034000,-693.83,0.00013698,2]
[423425117,1780107034000,-743.81,0.00013698,2]
[423425118,1780107034000,-743.81,0.00013698,2]
[423425115,1780107034000,-765.01,0.00013698,2]
[423425147,1780107034000,-4911.21,0.00013698,2]
[423425195,1780107034000,-194.77824471,0.00013881,2]
[423425150,1780107034000,-500.0,0.00013698,2]
[423425180,1780107034000,-150.0,0.00013798,2]
[423425188,1780107034000,-150.0,0.00013849,2]
[423425178,1780107034000,-15690.80252551,0.00013789,2]
[423425181,1780107034000,-150.0,0.00013803,2]
[423425185,1780107034000,-166.66,0.00013836,2]
[423425186,1780107034000,-194.77824471,0.00013836,2]
[423425184,1780107034000,-194.77824471,0.00013821,2]
[423425183,1780107034000,-150.0,0.00013812,2]
[423425182,1780107034000,-194.77824471,0.00013806,2]
[423425189,1780107034000,-194.77824471,0.00013851,2]
[423425190,1780107034000,-150.0,0.00013852,2]
[423425201,1780107034000,-194.77824471,0.00013896,2]
[423425191,1780107034000,-2000.0,0.00013852,2]
[423425194,1780107034000,-194.77824471,0.00013866,2]
[423425193,1780107034000,-150.0,0.00013862,2]
[423425214,1780107034000,-150.0,0.00013974,2]
[423425192,1780107034000,-150.0,0.00013862,2]
[423425199,1780107034000,-6262.529,0.0001389,2]
[423425198,1780107034000,-416.75120868,0.00013889,2]
[423425196,1780107034000,-150.0,0.00013882,2]
[423425197,1780107034000,-150.0,0.00013887,2]
[423425215,1780107034000,-4654.23758564,0.00013986,2]
[423425203,1780107034000,-194.77824471,0.00013912,2]
[423425213,1780107034000,-629.71999667,0.00013973,2]
[423425145,1780107034000,-500.0,0.00013698,2]
[423425187,1780107034000,-150.0,0.00013837,2]
[423425176,1780107034000,-194.77824471,0.00013775,2]
[423425200,1780107034000,-150.0,0.00013893,2]
[423425177,1780107034000,-150.0,0.00013787,2]
[423425152,1780107034000,-200.0,0.00013699,2]
[423425179,1780107034000,-194.77824471,0.0001379,2]
[423425161,1780107034000,-187.71242717,0.00013699,10]
[423425153,1780107034000,-2500.0,0.00013699,2]
[423425156,1780107034000,-154.0,0.00013699,2]
[423425154,1780107034000,-166.66,0.00013699,2]
[423425155,1780107034000,-154.0,0.00013699,2]
[423425151,1780107034000,-1365.03,0.00013699,2]
[423425159,1780107034000,-500.0,0.00013699,10]
[423425160,1780107034000,-500.0,0.00013699,10]
[423425158,1780107034000,-500.0,0.00013699,10]
[423425162,1780107034000,-194.77824471,0.000137,2]
[423425163,1780107034000,-150.0,0.000137,2]
[423425157,1780107034000,-500.0,0.00013699,10]
[423425165,1780107034000,-244.53104555,0.000137,2]
[423425171,1780107034000,-150.0,0.00013737,2]
[423425169,1780107034000,-150.0,0.00013731,2]
[423425175,1780107034000,-150.0,0.00013771,2]
[423425172,1780107034000,-194.77824471,0.00013745,2]
[423425170,1780107034000,-150.0,0.00013737,2]
[423425173,1780107034000,-150.0,0.00013746,2]
[423425167,1780107034000,-150.0,0.00013724,2]
[423425168,1780107034000,-194.77824471,0.0001373,2]
[423425164,1780107034000,-150.0,0.000137,2]
[423425166,1780107034000,-194.77824471,0.00013715,2]
[423425174,1780107034000,-194.77824471,0.0001376,2]
[423425254,1780107035000,-150.0,0.00014136,2]
[423425264,1780107035000,-194.77824471,0.00014199,2]
[423425263,1780107035000,-150.0,0.00014198,2]
[423425256,1780107035000,-194.77824471,0.00014139,2]
[423425265,1780107035000,-150.0,0.00014211,2]
[423425266,1780107035000,-194.77824471,0.00014214,2]
[423425261,1780107035000,-194.77824471,0.00014184,2]
[423425259,1780107035000,-194.77824471,0.00014169,2]
[423425252,1780107035000,-150.0,0.00014119,2]
[423425255,1780107035000,-150.0,0.00014137,2]
[423425260,1780107035000,-150.0,0.00014176,2]
[423425257,1780107035000,-194.77824471,0.00014154,2]
[423425258,1780107035000,-150.0,0.00014159,2]
[423425272,1780107035000,-194.77824471,0.00014245,2]
[423425268,1780107035000,-194.77824471,0.00014229,2]
[423425278,1780107035000,-150.0,0.00014276,2]
[423425267,1780107035000,-150.0,0.00014217,2]
[423425269,1780107035000,-150.0,0.00014237,2]
[423425270,1780107035000,-150.0,0.00014237,2]
[423425273,1780107035000,-166.66,0.00014247,2]
[423425274,1780107035000,-150.0,0.00014257,2]
[423425275,1780107035000,-194.77824471,0.0001426,2]
[423425276,1780107035000,-150.0,0.00014263,2]
[423425277,1780107035000,-194.77824471,0.00014275,2]
[423425271,1780107035000,-150.0,0.00014237,2]
[423425280,1780107035000,-194.77824471,0.0001429,2]
[423425250,1780107035000,-166.66,0.0001411,2]
[423425262,1780107035000,-150.0,0.00014187,2]
[423425251,1780107035000,-150.0,0.00014112,2]
[423425223,1780107035000,-823.3,0.00013989,2]
[423425248,1780107035000,-150.0,0.00014108,2]
[423425220,1780107035000,-632.03,0.00013989,2]
[423425228,1780107035000,-500.0,0.00013989,2]
[423425222,1780107035000,-500.0,0.00013989,2]
[423425225,1780107035000,-500.0,0.00013989,2]
[423425226,1780107035000,-736.64,0.00013989,2]
[423425227,1780107035000,-500.0,0.00013989,2]
[423425221,1780107035000,-586.94,0.00013989,2]
[423425224,1780107035000,-500.0,0.00013989,2]
[423425240,1780107035000,-150.0,0.0001405,2]
[423425230,1780107035000,-250.0,0.00014,2]
[423425229,1780107035000,-60000.0,0.0001399,2]
[423425231,1780107035000,-194.77824471,0.00014002,2]
[423425233,1780107035000,-150.0,0.00014014,2]
[423425249,1780107035000,-194.77824471,0.00014108,2]
[423425234,1780107035000,-194.77824471,0.00014017,2]
[423425235,1780107035000,-172.47512054,0.00014032,2]
[423425239,1780107035000,-194.77824471,0.00014048,2]
[423425236,1780107035000,-194.77824471,0.00014033,2]
[423425237,1780107035000,-150.0,0.00014037,2]
[423425241,1780107035000,-150.0,0.00014055,2]
[423425238,1780107035000,-150.0,0.0001404,2]
[423425242,1780107035000,-150.0,0.00014056,2]
[423425243,1780107035000,-194.77824471,0.00014063,2]
[423425253,1780107035000,-194.77824471,0.00014123,2]
[423425244,1780107035000,-194.77824471,0.00014078,2]
[423425246,1780107035000,-194.77824471,0.00014093,2]
[423425247,1780107035000,-150.0,0.00014095,2]
[423425245,1780107035000,-150.0,0.00014087,2]
[423425232,1780107035000,-150.0,0.00014004,2]
[423425282,1780107035000,-238.51,0.000143,2]
[423425281,1780107035000,-150.0,0.00014298,2]
[423425279,1780107035000,-150.0,0.00014287,2]
[423425314,1780107035000,-150.0,0.00014434,2]
[423425319,1780107035000,-31958.06626906,0.00014452,2]
[423425317,1780107035000,-7077.4865836,0.00014452,2]
[423425320,1780107035000,-122498.96550863,0.00014452,2]
[423425321,1780107035000,-151.0,0.00014452,2]
[423425324,1780107035000,-151.0,0.00014452,2]
[423425318,1780107035000,-285887.03120771,0.00014452,2]
[423425325,1780107035000,-151.0,0.00014452,2]
[423425322,1780107035000,-151.0,0.00014452,2]
[423425323,1780107035000,-151.0,0.00014452,2]
[423425328,1780107035000,-151.0,0.00014452,2]
[423425326,1780107035000,-151.0,0.00014452,2]
[423425327,1780107035000,-151.0,0.00014452,2]
[423425315,1780107035000,-150.0,0.00014437,2]
[423425330,1780107035000,-151.0,0.00014452,2]
[423425332,1780107035000,-151.0,0.00014452,2]
[423425335,1780107035000,-151.0,0.00014452,2]
[423425329,1780107035000,-151.0,0.00014452,2]
[423425337,1780107035000,-151.0,0.00014452,2]
[423425336,1780107035000,-151.0,0.00014452,2]
[423425334,1780107035000,-151.0,0.00014452,2]
[423425331,1780107035000,-151.0,0.00014452,2]
[423425338,1780107035000,-151.0,0.00014452,2]
[423425290,1780107035000,-150.0,0.00014337,2]
[423425333,1780107035000,-151.0,0.00014452,2]
[423425342,1780107035000,-151.0,0.00014452,2]
[423425341,1780107035000,-151.0,0.00014452,2]
[423425343,1780107035000,-151.0,0.00014452,2]
[423425340,1780107035000,-151.0,0.00014452,2]
[423425313,1780107035000,-156.2014279,0.00014431,2]
[423425339,1780107035000,-151.0,0.00014452,2]
[423425308,1780107035000,-194.77824471,0.00014411,2]
[423425311,1780107035000,-150.0,0.00014424,2]
[423425289,1780107035000,-194.77824471,0.00014335,2]
[423425283,1780107035000,-580.07,0.000143,2]
[423425288,1780107035000,-194.77824471,0.0001432,2]
[423425286,1780107035000,-150.0,0.00014315,2]
[423425285,1780107035000,-194.77824471,0.00014305,2]
[423425287,1780107035000,-350.0,0.00014319,2]
[423425291,1780107035000,-150.0,0.00014338,2]
[423425293,1780107035000,-194.77824471,0.00014351,2]
[423425292,1780107035000,-15690.80252551,0.00014344,2]
[423425294,1780107035000,-150.0,0.00014355,2]
[423425304,1780107035000,-309.0,0.000144,2]
[423425302,1780107035000,-150.0,0.00014387,2]
[423425303,1780107035000,-194.77824471,0.00014396,2]
[423425284,1780107035000,-621.46,0.000143,2]
[423425301,1780107035000,-166.66,0.00014384,2]
[423425297,1780107035000,-194.77824471,0.00014366,2]
[423425307,1780107035000,-350.0,0.00014409,2]
[423425309,1780107035000,-150.0,0.00014418,2]
[423425305,1780107035000,-1000.0,0.000144,2]
[423425316,1780107035000,-194.77824471,0.00014441,2]
[423425310,1780107035000,-150.0,0.00014419,2]
[423425295,1780107035000,-150.0,0.00014362,2]
[423425299,1780107035000,-150.0,0.00014379,2]
[423425306,1780107035000,-315.0,0.000144,2]
[423425298,1780107035000,-150.0,0.00014366,2]
[423425312,1780107035000,-194.77824471,0.00014426,2]
[423425300,1780107035000,-194.77824471,0.00014381,2]
[423425296,1780107035000,-350.0,0.00014364,2]
[423425389,1780107036000,-150.0,0.00014637,2]
[423425376,1780107036000,-194.77824471,0.00014562,2]
[423425371,1780107036000,-150.0,0.00014521,2]
[423425377,1780107036000,-150.0,0.00014573,2]
[423425378,1780107036000,-194.77824471,0.00014578,2]
[423425368,1780107036000,-509.89,0.00014504,2]
[423425380,1780107036000,-150.0,0.00014587,2]
[423425381,1780107036000,-150.0,0.00014592,2]
[423425379,1780107036000,-150.0,0.00014581,2]
[423425373,1780107036000,-150.0,0.00014537,2]
[423425374,1780107036000,-150.0,0.00014541,2]
[423425395,1780107036000,-194.77824471,0.00014668,2]
[423425388,1780107036000,-150.0,0.00014625,2]
[423425390,1780107036000,-194.77824471,0.00014638,2]
[423425384,1780107036000,-150.0,0.00014612,2]
[423425387,1780107036000,-194.77824471,0.00014623,2]
[423425385,1780107036000,-150.0,0.00014612,2]
[423425382,1780107036000,-194.77824471,0.00014593,2]
[423425391,1780107036000,-194.77824471,0.00014653,2]
[423425386,1780107036000,-150.0,0.00014622,2]
[423425392,1780107036000,-324.71,0.00014658,2]
[423425375,1780107036000,-194.77824471,0.00014547,2]
[423425383,1780107036000,-194.77824471,0.00014608,2]
[423425372,1780107036000,-194.77824471,0.00014532,2]
[423425354,1780107036000,-150.0,0.0001446,2]
[423425369,1780107036000,-150.0,0.00014513,2]
[423425352,1780107036000,-1210.2509251,0.00014452,2]
[423425353,1780107036000,-194.77824471,0.00014456,2]
[423425345,1780107036000,-151.0,0.00014452,2]
[423425346,1780107036000,-151.0,0.00014452,2]
[423425350,1780107036000,-279.960539,0.00014452,2]
[423425344,1780107036000,-151.0,0.00014452,2]
[423425351,1780107036000,-26114.0208796,0.00014452,2]
[423425349,1780107036000,-151.0,0.00014452,2]
[423425347,1780107036000,-151.0,0.00014452,2]
[423425348,1780107036000,-151.0,0.00014452,2]
[423425356,1780107036000,-194.77824471,0.00014472,2]
[423425360,1780107036000,-693.2,0.00014497,2]
[423425362,1780107036000,-224.5553217,0.00014497,2]
[423425358,1780107036000,-150.0,0.00014487,2]
[423425364,1780107036000,-194.77824471,0.00014502,2]
[423425357,1780107036000,-150.0,0.00014487,2]
[423425359,1780107036000,-194.77824471,0.00014487,2]
[423425363,1780107036000,-150.0,0.000145,2]
[423425361,1780107036000,-28828.4246783,0.00014497,2]
[423425365,1780107036000,-10958.49,0.00014504,2]
[423425355,1780107036000,-150.0,0.0001447,2]
[423425366,1780107036000,-7562.54,0.00014504,2]
[423425367,1780107036000,-9999.99,0.00014504,2]
[423425370,1780107036000,-194.77824471,0.00014517,2]
[423425394,1780107036000,-4099.066,0.00014668,2]